bitfinex/quotes_ETHUSD_20240823
["timestamp","ask_amount","ask_price","bid_price","bid_amount"]
[1724412027473,3.75897,2660.3,2659.8,3.75961]
[1724412028483,3.75897,2660.3,2659.7,6.1824]
[1724412029252,3.75919,2660.2,2659.7,2.4226]
[1724412030265,3.75935,2660.1,2659.7,2.4226]
[1724412030575,3.75935,2660.1,2659.7,3.040853]
[1724412032579,3.75935,2660.1,2659.7,2.4226]
[1724412033983,3.75935,2660.1,2659.6,3.75993]
[1724412034280,3.75935,2660.1,2659.2,0.0082767]
[1724412034281,3.75956,2659.9,2659.2,6.2069667]
[1724412034442,3.75977,2659.8,2659.2,9.9674067]
[1724412034643,3.75977,2659.8,2659.3,0.99674067]
[1724412036181,3.75956,2659.9,2659.3,4.75712067]
[1724412036182,7.51924,2659.9,2659.3,4.75712067]
[1724412036384,7.51921,2659.9,2659.3,4.75712067]
[1724412036555,7.51921,2659.9,2659.2,3.7686667]
[1724412036556,2.476,2660.0,2659.2,0.0082767]
[1724412036748,3.75995,2659.7,2659.2,0.0082767]
[1724412038047,2.4757,2659.6,2659.2,0.0082767]
[1724412038446,3.7601,2659.5,2659.2,0.0082767]
[1724412039182,3.76038,2659.3,2659.2,0.0082767]
[1724412039343,4.512433,2659.3,2659.2,0.0082767]
[1724412039545,3.76038,2659.3,2659.2,0.0082767]
[1724412039769,3.76038,2659.3,2659.2,0.09256324]
[1724412040782,9.86316,2659.3,2659.2,0.09256324]
[1724412040980,9.86316,2659.3,2659.2,0.0082767]
[1724412041479,10.41316,2659.3,2659.2,0.0082767]
[1724412042178,11.830493,2659.3,2659.2,0.0082767]
[1724412044566,8.070113,2659.3,2659.2,0.0082767]
[1724412044772,10.41316,2659.3,2659.2,0.0082767]
[1724412048380,21.74951596,2659.3,2659.2,0.0082767]
[1724412048579,24.74951596,2659.3,2659.2,0.0082767]
[1724412048918,24.74951596,2659.3,2659.2,6.7e-06]
[1724412049125,28.50989596,2659.3,2659.2,6.7e-06]
[1724412049415,3.76224,2658.0,2657.5,2.4107]
[1724412049620,3.76224,2658.0,2657.6,0.08637984]
[1724412049979,3.76196,2658.2,2657.6,3.84916984]
[1724412050218,3.76172,2658.4,2657.8,3.7624]
[1724412050421,3.76143,2658.6,2657.9,2.38826693]
[1724412050646,3.0,2658.7,2658.0,4.37720669]
[1724412050778,3.76115,2658.8,2658.3,6.1995]
[1724412050983,7.52178,2659.0,2658.4,0.08599284]
[1724412051224,7.52178,2659.0,2658.5,3.7615]
[1724412051225,3.76087,2659.0,2658.5,3.7615]
[1724412051396,3.76059,2659.2,2658.7,2.354]
[1724412051590,7.52124,2659.2,2658.8,0.08562334]
[1724412051818,3.76069,2659.1,2658.8,0.08562334]
[1724412052192,3.76059,2659.2,2658.8,0.08562334]
[1724412052919,3.00709,2659.2,2658.8,0.08562334]
[1724412053220,3.00709,2659.2,2658.4,6.11552]
[1724412053221,3.76055,2659.2,2658.5,3.76148]
[1724412053422,3.76055,2659.2,2658.6,0.08574229]
[1724412053597,3.76055,2659.2,2658.7,2.354]
[1724412053793,3.76055,2659.2,2658.8,0.08555755]
[1724412054835,3.7604,2659.3,2658.8,0.08555755]
[1724412054980,3.7604,2659.3,2658.8,0.70563431]
[1724412055186,3.76062,2659.2,2658.8,0.70563431]
[1724412055410,3.76062,2659.2,2658.8,0.08555755]
[1724412056539,3.7603,2659.4,2658.8,0.08555755]
[1724412056685,9.01503,2659.6,2659.0,6.21952]
[1724412056686,6.76003,2659.6,2659.0,6.21952]
[1724412056886,3.75974,2659.8,2659.1,3.76057]
[1724412057131,3.7599,2659.7,2659.1,4.84355886]
[1724412057425,3.75997,2659.6,2659.1,4.84355886]
[1724412057739,3.75974,2659.8,2659.1,0.08497986]
[1724412057740,3.76052,2659.2,2659.1,0.08497986]
[1724412058026,3.76052,2659.2,2658.7,2.274]
[1724412058231,3.76075,2659.1,2658.7,2.274]
[1724412058794,3.76081,2659.0,2658.7,2.274]
[1724412060030,3.76081,2659.0,2658.4,3.76156]
[1724412060031,3.7611,2658.8,2658.4,2.328]
[1724412060388,7.52229,2658.8,2658.4,2.328]
[1724412060727,3.76124,2658.7,2658.4,2.328]
[1724412061248,3.7611,2658.8,2658.4,2.328]
[1724412061557,7.5223,2658.8,2658.4,2.328]
[1724412061756,7.5223,2658.8,2658.3,7.41]
[1724412062124,3.7611,2658.8,2658.3,7.41]
[1724412062451,3.7611,2658.8,2658.3,13.751733]
[1724412062655,7.52182,2659.0,2658.3,13.751733]
[1724412062812,3.76103,2658.9,2658.3,13.751733]
[1724412063262,3.76089,2659.0,2658.5,3.7614]
[1724412063726,3.76089,2659.0,2658.6,2.3182]
[1724412064350,2.2819,2659.4,2658.6,7.063664]
[1724412064550,3.76047,2659.3,2658.7,3.76119]
[1724412064723,3.76047,2659.3,2658.7,7.52234]
[1724412064925,7.52093,2659.3,2658.7,3.76115]
[1724412065126,3.76046,2659.3,2658.8,4.4674374]
[1724412065518,3.76016,2659.5,2658.9,3.76094]
[1724412065519,7.52036,2659.5,2658.9,3.76094]
[1724412065751,3.0,2659.4,2658.9,3.76094]
[1724412065953,6.09791,2659.7,2658.9,3.76087]
[1724412066257,3.76011,2659.5,2659.0,2.3286]
[1724412066454,3.76028,2659.4,2659.0,2.3286]
[1724412066753,3.76039,2659.3,2659.0,2.3286]
[1724412066960,7.52087,2659.3,2659.0,2.3286]
[1724412067153,3.76039,2659.3,2659.0,2.3286]
[1724412067388,3.76039,2659.3,2658.7,6.14403]
[1724412067656,3.76039,2659.3,2658.7,7.9739944]
[1724412067954,3.76077,2659.1,2658.7,2.3829]
[1724412068157,3.76083,2659.0,2658.7,2.3829]
[1724412068730,3.76097,2658.9,2658.4,2.4901]
[1724412069970,3.76097,2658.9,2658.4,6.25175]
[1724412070262,7.52147,2659.1,2658.5,5.503723]
[1724412070460,3.76069,2659.1,2658.5,5.503723]
[1724412070667,3.76069,2659.1,2658.6,3.76136]
[1724412070868,3.76098,2658.9,2658.4,6.25175]
[1724412071066,3.76098,2658.9,2657.4,12.37]
[1724412071067,3.76153,2658.5,2658.1,2.4903]
[1724412071271,3.76153,2658.5,2657.6,3.76273]
[1724412071272,3.76169,2658.4,2657.7,2.4903]
[1724412071737,3.76169,2658.4,2657.7,6.25292]
[1724412072065,7.52348,2658.4,2657.8,0.08357161]
[1724412072238,3.76169,2658.4,2657.8,0.08357161]
[1724412072651,3.7618,2658.3,2657.8,0.08357161]
[1724412072857,3.76169,2658.4,2657.8,0.08357161]
[1724412073052,3.76169,2658.4,2657.7,6.25292]
[1724412073228,3.76124,2658.7,2657.9,0.08347918]
[1724412073433,3.76124,2658.7,2658.1,2.3616]
[1724412073666,3.7614,2658.6,2658.2,0.08320195]
[1724412073839,3.76114,2658.8,2658.2,0.08320195]
[1724412074247,3.76125,2658.7,2658.2,0.08320195]
[1724412074445,3.76114,2658.8,2658.2,0.08320195]
[1724412075633,3.76147,2658.6,2658.2,0.08320195]
[1724412075864,3.76152,2658.5,2658.2,0.08320195]
[1724412076064,3.76167,2658.4,2658.2,0.08320195]
[1724412076571,7.52344,2658.4,2657.8,2.4562]
[1724412076776,7.52344,2658.4,2658.3,0.08310955]
[1724412076777,3.76167,2658.4,2658.3,0.08310955]
[1724412076934,3.76167,2658.4,2657.8,2.4562]
[1724412076935,3.76183,2658.3,2657.8,2.4562]
[1724412077338,3.76195,2658.2,2657.8,2.4562]
[1724412077552,3.76195,2658.2,2657.6,3.76275]
[1724412078780,3.76195,2658.2,2657.5,2.4652]
[1724412078781,7.52432,2658.1,2657.5,6.22813]
[1724412079175,3.76213,2658.1,2657.5,6.22813]
[1724412079381,3.76187,2658.3,2657.6,3.76279]
[1724412079684,3.76187,2658.3,2657.5,3.464309]
[1724412079685,3.76218,2658.1,2657.5,6.22813]
[1724412080270,3.76218,2658.1,2657.5,2.4652]
[1724412080271,3.76224,2658.0,2657.5,2.4652]
[1724412080481,3.76224,2658.0,2657.4,7.52595]
[1724412080774,3.76218,2658.1,2657.5,3.76289]
[1724412080775,7.52439,2658.1,2657.5,3.76289]
[1724412080975,4.138398,2658.1,2657.4,3.76296]
[1724412081593,3.7626,2657.8,2657.3,2.3782]
[1724412081880,3.76245,2657.9,2657.2,11.17326]
[1724412081881,3.76267,2657.7,2657.2,11.17326]
[1724412082240,3.76267,2657.7,2657.0,6.20945]
[1724412082442,3.76267,2657.7,2657.1,3.76349]
[1724412082864,7.52541,2657.7,2657.1,3.76349]
[1724412083085,3.76267,2657.7,2657.1,3.76349]
[1724412083378,3.76267,2657.7,2657.1,5.501784]
[1724412083541,7.52545,2657.7,2657.1,3.76349]
[1724412083754,3.76267,2657.7,2657.1,3.76349]
[1724412084253,7.52542,2657.7,2657.1,3.76349]
[1724412084459,3.76294,2657.5,2656.9,14.93739]
[1724412084667,3.76294,2657.5,2656.9,3.76369]
[1724412084952,3.76294,2657.5,2656.9,4.7623]
[1724412085388,3.7631,2657.4,2656.7,9.98638]
[1724412085570,3.7631,2657.4,2656.7,9.98635]
[1724412085770,3.76329,2657.3,2656.5,15.0686267]
[1724412085965,3.76329,2657.3,2656.8,3.76391]
[1724412086169,4.31299,2657.5,2656.8,3.76391]
[1724412086170,3.76315,2657.4,2656.8,3.76391]
[1724412086370,4.799904,2657.4,2656.8,3.76391]
[1724412086562,1.036754,2657.4,2656.9,3.76377]
[1724412086894,4.799924,2657.4,2657.0,0.08044714]
[1724412087098,3.76322,2657.3,2656.7,3.76395]
[1724412087434,3.76322,2657.3,2657.1,0.08035466]
[1724412087700,4.6745164,2657.3,2657.2,0.08026218]
[1724412088064,4.6745164,2657.3,2656.7,3.76395]
[1724412088395,3.76336,2657.2,2656.7,3.76395]
[1724412088911,4.31296,2657.5,2656.8,3.76389]
[1724412089205,3.76317,2657.4,2656.8,3.76389]
[1724412089360,3.76321,2657.3,2656.8,3.76389]
[1724412090189,3.76321,2657.3,2656.6,3.7642]
[1724412090387,4.139731,2657.2,2656.6,3.76412]
[1724412090695,4.139731,2657.2,2656.7,3.76405]
[1724412090696,3.76344,2657.2,2656.7,3.76405]
[1724412091104,4.31302,2657.5,2656.7,3.76405]
[1724412091313,3.76325,2657.3,2656.8,3.76391]
[1724412091969,3.76325,2657.3,2656.6,3.76412]
[1724412092178,3.7635,2657.1,2656.6,3.76412]
[1724412092487,3.7635,2657.1,2656.6,7.52824]
[1724412092668,3.76325,2657.3,2656.7,3.76405]
[1724412092895,2.2914,2657.6,2656.9,2.3282]
[1724412093083,3.76274,2657.7,2657.2,3.76325]
[1724412093304,4.666674,2657.7,2657.2,3.76325]
[1724412093506,4.666674,2657.7,2657.0,3.76357]
[1724412093507,4.666674,2657.7,2657.0,3.76353]
[1724412093681,3.76274,2657.7,2657.2,3.7633]
[1724412093888,0.376218,2658.1,2657.2,3.7633]
[1724412093889,6.09808,2658.1,2657.5,2.2769]
[1724412094219,3.76202,2658.2,2657.6,3.76268]
[1724412094380,3.76188,2658.3,2657.7,3.76254]
[1724412094935,3.76188,2658.3,2657.7,7.52511]
[1724412095099,7.52318,2658.5,2657.8,0.752511]
[1724412095425,3.76174,2658.4,2657.9,2.3265]
[1724412095711,3.76159,2658.5,2657.9,2.3265]
[1724412095712,7.52321,2658.5,2657.9,6.08884]
[1724412095881,3.76159,2658.5,2657.9,6.08884]
[1724412096081,7.52321,2658.5,2657.9,6.08884]
[1724412096283,7.52321,2658.5,2657.9,6.08877]
[1724412096284,3.76159,2658.5,2657.9,6.08877]
[1724412096523,3.76128,2658.7,2658.1,3.76207]
[1724412096524,7.52265,2658.7,2658.1,3.76207]
[1724412096677,3.76128,2658.7,2658.1,3.76207]
[1724412096985,3.76103,2658.9,2658.3,3.7618]
[1724412097191,3.76103,2658.9,2658.2,2.4653]
[1724412097543,3.76076,2659.1,2658.5,3.76144]
[1724412097811,7.52155,2659.1,2658.6,0.376144]
[1724412098172,3.76076,2659.1,2658.6,0.376144]
[1724412098372,3.76059,2659.2,2658.7,2.2964]
[1724412098987,3.76077,2659.1,2658.7,2.2964]
[1724412099399,3.76081,2659.0,2658.7,2.2964]
[1724412099599,3.76081,2659.0,2658.0,3.011177]
[1724412099600,0.75214,2659.0,2658.0,3.011177]
[1724412099829,3.76117,2658.8,2658.2,3.76192]
[1724412100530,3.76117,2658.8,2658.3,3.7617]
[1724412101031,3.76089,2659.0,2658.5,2.3304]
[1724412101392,7.52183,2659.0,2658.5,2.3304]
[1724412101591,3.76089,2659.0,2658.5,2.3304]
[1724412101842,3.76089,2659.0,2658.5,2.939598]
[1724412102004,3.76089,2659.0,2658.6,0.07877611]
[1724412102334,3.76059,2659.2,2658.6,3.84011611]
[1724412102638,3.76068,2659.1,2658.6,3.84006611]
[1724412104303,3.76068,2659.1,2658.6,7.60135611]
[1724412104593,3.76057,2659.2,2658.7,1.05409541]
[1724412104798,3.76057,2659.2,2658.7,4.81530541]
[1724412105026,3.76057,2659.2,2658.8,0.07859137]
[1724412105503,3.76088,2659.0,2658.8,0.07859137]
[1724412105907,3.76088,2659.0,2658.5,2.3304]
[1724412106108,3.76088,2659.0,2658.9,0.07775815]
[1724412106394,3.76088,2659.0,2658.6,0.985355]
[1724412106955,3.76088,2659.0,2658.7,0.07794287]
[1724412107155,3.76109,2658.8,2658.7,0.07794287]
[1724412107457,3.76124,2658.7,2658.2,6.0991]
[1724412107798,3.76124,2658.7,2658.3,0.0757489]
[1724412108238,3.76124,2658.7,2658.2,6.0991]
[1724412108407,3.76124,2658.7,2658.4,0.07574069]
[1724412108612,3.76124,2658.7,2658.3,0.07583309]
[1724412108837,3.76133,2658.7,2658.5,0.07564831]
[1724412109143,2.499,2659.1,2658.2,2.3372]
[1724412109144,3.76101,2658.9,2658.6,0.07559803]
[1724412109295,3.76101,2658.9,2658.4,3.76166]
[1724412109495,3.76101,2658.9,2658.7,0.07550566]
[1724412109691,3.76101,2658.9,2658.4,3.76166]
[1724412109933,3.76101,2658.9,2658.8,0.07541329]
[1724412110110,3.76111,2658.8,2658.2,9.86086]
[1724412110435,3.76111,2658.8,2658.2,7.085086]
[1724412110436,3.76124,2658.7,2658.2,7.085086]
[1724412110596,3.76146,2658.6,2658.2,2.3372]
[1724412112197,3.76125,2658.7,2658.2,2.3372]
[1724412112398,10.02078,2658.9,2658.3,3.7618]
[1724412112731,7.52208,2658.9,2658.3,3.7618]
[1724412113144,3.76118,2658.8,2658.3,3.7618]
[1724412113315,3.76126,2658.7,2658.2,2.3372]
[1724412113700,3.76126,2658.7,2658.1,3.76198]
[1724412113701,4.51349,2658.7,2658.1,3.76198]
[1724412114055,4.51349,2658.7,2657.9,6.10523]
[1724412114056,6.19736,2658.6,2657.9,6.10523]
[1724412114246,6.19736,2658.6,2657.4,3.76303]
[1724412114247,3.76163,2658.5,2657.7,6.10557]
[1724412114396,3.76163,2658.5,2657.9,3.76223]
[1724412114595,3.761,2658.9,2657.7,2.343]
[1724412114596,6.19697,2658.9,2658.3,3.76178]
[1724412114837,3.76118,2658.8,2658.3,3.76178]
[1724412115238,7.52236,2658.8,2658.3,3.76178]
[1724412115541,7.52236,2658.8,2658.3,3.76179]
[1724412115542,3.76118,2658.8,2658.3,3.76179]
[1724412115701,3.76118,2658.8,2658.3,7.52352]
[1724412115903,0.919697,2658.9,2658.3,3.76173]
[1724412116344,0.919697,2658.9,2658.2,2.343]
[1724412116502,3.76131,2658.7,2658.2,2.343]
[1724412116701,3.76131,2658.7,2658.3,0.07357773]
[1724412116901,7.9143197,2658.8,2658.2,6.1049]
[1724412117099,4.1531297,2658.8,2658.4,0.07348533]
[1724412117344,3.76116,2658.8,2658.3,3.83528773]
[1724412117582,3.76127,2658.7,2658.5,0.07339295]
[1724412117863,0.919697,2658.9,2658.1,3.76203]
[1724412117864,6.16371,2658.6,2658.4,0.07348533]
[1724412118029,3.76177,2658.4,2658.1,7.41]
[1724412118225,7.52355,2658.4,2658.1,7.41]
[1724412118465,7.52353,2658.4,2658.1,7.41]
[1724412118625,3.76176,2658.4,2658.1,7.41]
[1724412118822,6.16375,2658.6,2658.1,7.41]
[1724412119022,3.76155,2658.5,2658.1,7.41]
[1724412119267,3.76168,2658.4,2658.1,7.41]
[1724412119463,3.7618,2658.3,2658.1,7.41]
[1724412119766,10.00658,2658.2,2658.1,7.41]
[1724412120138,6.24464,2658.2,2658.1,7.41]
[1724412120640,10.00658,2658.2,2658.1,7.41]
[1724412121267,10.00658,2658.2,2657.3,2.4673]
[1724412121268,3.76236,2657.9,2657.3,2.4673]
[1724412121477,3.76236,2657.9,2657.3,3.831369]
[1724412121478,3.76264,2657.8,2657.3,3.831369]
[1724412121980,3.76233,2658.0,2657.3,3.831369]
[1724412122132,3.76243,2657.9,2657.4,3.76307]
[1724412122337,3.76251,2657.8,2657.3,3.831369]
[1724412122551,3.76251,2657.8,2657.3,1.364069]
[1724412122746,6.01301,2657.8,2657.2,11.17325]
[1724412123267,6.01301,2657.8,2657.2,14.93651]
[1724412123471,6.01301,2657.8,2657.2,11.17325]
[1724412123630,6.01301,2657.8,2657.2,14.93652]
[1724412123836,6.01301,2657.8,2657.3,3.76319]
[1724412124477,9.77562,2657.8,2657.2,11.17325]
[1724412124769,3.76266,2657.7,2657.2,11.17325]
[1724412124983,6.01301,2657.8,2657.2,11.17325]
[1724412125159,6.614311,2657.8,2657.2,7.41]
[1724412125334,7.5258,2657.6,2657.2,7.41]
[1724412125534,3.76257,2657.8,2657.2,11.17329]
[1724412125974,3.76257,2657.8,2657.3,3.76312]
[1724412126145,3.76231,2658.0,2657.4,3.76307]
[1724412126346,3.76231,2658.0,2657.4,6.05247]
[1724412126670,3.76198,2658.2,2657.6,3.7627]
[1724412126976,3.76198,2658.2,2657.6,7.52541]
[1724412127273,3.76198,2658.2,2657.6,3.7627]
[1724412127435,6.21833,2658.4,2657.6,4.36791]
[1724412127637,3.76173,2658.4,2657.9,2.259]
[1724412127874,3.76173,2658.4,2657.9,6.02127]
[1724412128358,3.76142,2658.6,2657.9,6.02127]
[1724412128567,3.76167,2658.4,2657.9,2.259]
[1724412128733,3.76167,2658.4,2657.9,3.237384]
[1724412129133,3.76167,2658.4,2657.9,6.999744]
[1724412129338,3.76142,2658.6,2658.0,3.7622]
[1724412129537,3.76142,2658.6,2658.0,7.52433]
[1724412129853,3.76142,2658.6,2658.0,3.76213]
[1724412130053,3.76142,2658.6,2658.0,4.4620814]
[1724412130453,7.52289,2658.6,2658.0,4.4620814]
[1724412130880,3.76142,2658.6,2658.0,8.2242214]
[1724412131053,3.76118,2658.8,2658.0,4.4621014]
[1724412131252,3.76076,2659.1,2658.5,2.3471]
[1724412131456,3.76076,2659.1,2658.5,6.10857]
[1724412131766,3.76076,2659.1,2658.6,0.06295066]
[1724412132083,3.76076,2659.1,2658.6,3.82431066]
[1724412132278,6.0608,2659.3,2658.6,3.82431066]
[1724412132279,3.76053,2659.2,2658.6,7.58553066]
[1724412132438,3.7604,2659.3,2658.6,3.82423066]
[1724412132644,3.76062,2659.2,2658.6,3.82423066]
[1724412133068,3.76083,2659.0,2658.6,0.06295066]
[1724412133269,3.76078,2659.1,2658.6,0.06295066]
[1724412133843,3.76078,2659.1,2658.6,3.82429066]
[1724412134178,3.76044,2659.3,2658.7,3.76113]
[1724412134381,6.76013,2659.5,2658.9,3.76094]
[1724412134675,6.76013,2659.5,2659.0,2.3161]
[1724412134863,3.76013,2659.5,2659.0,2.37702858]
[1724412135066,3.75986,2659.7,2659.0,2.99082544]
[1724412135479,3.75998,2659.6,2659.0,2.99082544]
[1724412135670,6.75998,2659.6,2659.0,2.99082544]
[1724412135873,3.0,2659.6,2659.0,6.75153544]
[1724412136068,3.75986,2659.7,2659.1,3.76065]
[1724412136271,3.75986,2659.7,2659.1,4.81188154]
[1724412136471,7.51921,2659.9,2659.2,3.8212539]
[1724412136787,7.51921,2659.9,2659.3,3.76038]
[1724412136788,3.75956,2659.9,2659.3,3.76038]
[1724412137093,7.51868,2660.1,2659.4,6.09124]
[1724412137398,7.51868,2660.1,2659.4,6.15179925]
[1724412137399,3.7593,2660.1,2659.4,6.15179925]
[1724412137697,3.7593,2660.1,2659.5,3.83528492]
[1724412137899,7.51867,2660.1,2659.5,3.83528492]
[1724412138049,7.51867,2660.1,2659.6,0.06037462]
[1724412138251,3.7593,2660.1,2659.6,0.06037462]
[1724412138478,3.7594,2660.0,2659.6,0.06037462]
[1724412138986,3.75954,2659.9,2659.7,0.06028232]
[1724412139142,3.75954,2659.9,2659.4,3.32231792]
[1724412139346,3.75954,2659.9,2659.8,0.06019003]
[1724412139593,3.75983,2659.7,2659.3,7.41]
[1724412140148,3.75954,2659.9,2659.3,7.41]
[1724412140350,7.51866,2660.1,2659.4,3.76021]
[1724412140563,3.7593,2660.1,2659.5,2.3239]
[1724412141175,3.7593,2660.1,2659.1,16.1306]
[1724412141176,3.75965,2659.9,2659.1,6.0845]
[1724412141385,0.62204,2660.1,2659.1,6.0845]
[1724412141386,3.76009,2659.6,2659.1,2.3239]
[1724412141795,3.75983,2659.7,2659.1,2.3239]
[1724412141966,3.75983,2659.7,2659.1,6.08455]
[1724412142353,7.51975,2659.7,2659.1,6.08455]
[1724412142555,3.75983,2659.7,2659.1,6.08455]
[1724412144592,3.75983,2659.7,2659.1,2.3239]
[1724412144593,3.75997,2659.6,2659.1,2.3239]
[1724412145201,4.511772,2659.7,2659.1,2.3239]
[1724412145361,3.75996,2659.6,2659.1,2.3239]
[1724412146398,4.511772,2659.7,2659.1,6.08456]
[1724412146606,3.76008,2659.6,2659.1,2.3239]
[1724412146804,3.76008,2659.6,2659.2,0.05993951]
[1724412147205,0.751942,2659.7,2659.2,0.05993951]
[1724412147565,3.75984,2659.7,2659.2,0.05993951]
[1724412147913,3.75961,2659.9,2659.2,0.05993951]
[1724412148074,4.38137,2660.1,2659.5,3.76007]
[1724412148275,3.75933,2660.1,2659.5,3.76007]
[1724412148470,3.75947,2660.0,2659.6,0.05957491]
[1724412148707,2.3191,2660.3,2659.6,0.05957491]
[1724412149230,2.3191,2660.3,2659.7,0.05948261]
[1724412149231,9.96596,2659.8,2659.7,0.05948261]
[1724412149433,11.7200816,2659.8,2659.7,0.05948261]
[1724412149726,3.76024,2659.4,2659.0,2.4354]
[1724412149893,3.76039,2659.3,2659.0,2.4354]
[1724412150226,3.76032,2659.4,2659.1,0.05822116]
[1724412150632,3.76023,2659.5,2659.1,0.05822116]
[1724412151278,7.52045,2659.5,2659.1,0.05822116]
[1724412151475,0.752045,2659.4,2659.1,0.05822116]
[1724412151975,0.752045,2659.4,2658.8,3.76098]
[1724412151976,4.512295,2659.4,2658.8,3.76098]
[1724412152204,4.2007216,2659.8,2659.2,0.05812882]
[1724412152205,3.75989,2659.7,2659.2,0.05812882]
[1724412152406,3.75989,2659.7,2658.9,3.76093]
[1724412152604,3.76014,2659.5,2659.3,0.05803649]
[1724412152789,3.75997,2659.6,2659.0,3.76077]
[1724412152993,3.75997,2659.6,2659.4,0.05794417]
[1724412153195,4.756616,2659.6,2659.0,3.76077]
[1724412153513,3.75989,2659.7,2659.5,0.05785185]
[1724412153680,3.75989,2659.7,2659.2,2.3745]
[1724412153883,3.75989,2659.7,2659.6,0.05775954]
[1724412154096,3.75989,2659.7,2659.2,2.3745]
[1724412154298,3.75955,2659.9,2659.6,0.05775954]
[1724412154495,3.75955,2659.9,2659.2,6.13496]
[1724412154496,5.041272,2659.9,2659.2,6.13496]
[1724412154718,3.75955,2659.9,2659.7,0.05776075]
[1724412154921,9.05773,2660.1,2659.5,2.4102]
[1724412154922,6.75933,2660.1,2659.5,2.4102]
[1724412155216,3.7594,2660.0,2659.5,2.4102]
[1724412155435,3.7594,2660.0,2659.6,0.05785305]
[1724412155915,3.7594,2660.0,2659.5,2.4102]
[1724412156324,3.7594,2660.0,2659.6,0.05785305]
[1724412156635,3.75933,2660.1,2659.5,6.24546917]
[1724412156791,3.75933,2660.1,2659.6,4.76052092]
[1724412156979,3.75933,2660.1,2659.6,4.81837397]
[1724412157490,3.75933,2660.1,2659.7,2.3568]
[1724412157903,3.75933,2660.1,2659.8,0.05757495]
[1724412158214,3.75933,2660.1,2659.7,2.3568]
[1724412158416,3.75933,2660.1,2659.9,0.05748267]
[1724412158590,3.75933,2660.1,2659.8,0.05757495]
[1724412158790,3.75933,2660.1,2659.7,2.3568]
[1724412158791,3.75933,2660.1,2660.0,0.05739038]
[1724412159019,3.75939,2660.0,2659.9,0.05748267]
[1724412159177,3.75939,2660.0,2659.5,3.76009]
[1724412159381,3.75939,2660.0,2659.6,0.987703]
[1724412161221,3.75939,2660.0,2659.4,6.11694]
[1724412161600,3.75971,2659.8,2659.4,2.3568]
[1724412161801,3.75939,2660.0,2659.5,0.05618519]
[1724412162302,7.51891,2660.0,2659.5,0.05618519]
[1724412162657,7.51887,2660.0,2659.5,0.05618519]
[1724412162823,7.51887,2660.0,2659.5,1.41450471]
[1724412163032,3.75939,2660.0,2659.5,1.41450471]
[1724412163228,3.75966,2659.9,2659.5,0.05618519]
[1724412163587,3.75991,2659.7,2659.5,0.05618519]
[1724412164092,7.51983,2659.7,2659.5,0.05618519]
[1724412164285,3.75991,2659.7,2659.1,6.02705]
[1724412164522,7.51984,2659.7,2659.1,6.02705]
[1724412164726,3.75991,2659.7,2659.2,2.27206822]
[1724412165020,3.76012,2659.5,2659.2,0.05628922]
[1724412165589,7.5203,2659.5,2659.2,0.05628922]
[1724412165790,3.76012,2659.5,2659.2,0.05628922]
[1724412166890,7.51984,2659.7,2659.2,0.05628922]
[1724412167132,3.76004,2659.6,2659.2,0.05628922]
[1724412167895,7.51984,2659.7,2659.2,0.05628922]
[1724412168100,3.75989,2659.7,2659.2,0.05628922]
[1724412169310,3.75998,2659.6,2659.2,0.05628922]
[1724412169934,6.16149596,2660.2,2659.3,3.76038]
[1724412170235,3.7594,2660.0,2659.4,0.05591757]
[1724412170533,3.75975,2659.8,2659.4,0.05591757]
[1724412171311,3.75975,2659.8,2659.4,0.62208082]
[1724412172303,7.51951,2659.8,2659.4,0.62208082]
[1724412172705,3.75975,2659.8,2659.4,0.62208082]
[1724412173099,7.51954,2659.8,2659.4,0.62208082]
[1724412173296,3.75983,2659.7,2659.4,0.62208082]
[1724412173501,3.75983,2659.7,2659.4,0.05591757]
[1724412173798,3.75983,2659.7,2659.2,3.76049]
[1724412174016,3.75983,2659.7,2659.5,0.05449192]
[1724412174221,3.76,2659.6,2659.1,6.02707]
[1724412174451,3.76,2659.6,2659.1,3.986192]
[1724412174452,3.76032,2659.4,2659.1,3.986192]
[1724412175357,3.76015,2659.5,2659.1,3.986192]
[1724412175723,3.76,2659.6,2659.1,3.986192]
[1724412176666,7.0983756,2663.2,2659.1,3.986192]
[1724412176667,3.75918,2660.2,2659.6,3.75988]
[1724412176850,7.51842,2660.2,2659.7,0.607748]
[1724412177052,3.75936,2660.1,2659.7,0.66214411]
[1724412177241,3.75918,2660.2,2659.7,0.66214411]
[1724412177565,3.7594,2660.0,2659.7,0.66214411]
[1724412177723,7.51839,2660.2,2659.7,0.66214411]
[1724412177932,3.75929,2660.1,2659.7,0.66214411]
[1724412178448,3.75918,2660.2,2659.7,4.42195411]
[1724412180260,7.51842,2660.2,2659.7,4.42195411]
[1724412180570,3.75918,2660.2,2659.7,4.42195411]
[1724412181246,2.28,2660.5,2659.8,2.76009541]
[1724412181449,7.51786,2660.4,2659.8,2.3179]
[1724412181770,3.75857,2660.6,2660.0,3.75939]
[1724412182328,3.75857,2660.6,2660.1,0.05378397]
[1724412182675,3.75886,2660.4,2659.9,3.75948]
[1724412182839,3.75886,2660.4,2660.2,0.0536917]
[1724412182840,7.51777,2660.4,2660.2,0.0536917]
[1724412183030,3.75886,2660.4,2659.8,6.07749]
[1724412183341,3.75886,2660.4,2659.9,0.05396852]
[1724412184145,3.75886,2660.4,2659.9,3.81349852]
[1724412185268,6.15606,2661.0,2660.4,3.75875]
[1724412185469,6.15578,2661.2,2660.4,6.07127]
[1724412185769,3.75827,2660.8,2660.5,0.05341494]
[1724412187039,3.75806,2661.0,2660.5,0.05341494]
[1724412187379,3.75834,2660.8,2660.5,0.05341494]
[1724412188044,3.75855,2660.6,2660.5,0.05341494]